{"text_format":"3","workbook":"xlsx","n_sheets":7,"sheets":["SAŽETAK"," Račun prihoda i rashoda","Prihodi i rashodi po izvorima","Rashodi prema funkcijskoj kl","Račun financiranja","Račun financiranja po izvorima","POSEBNI DIO"],"read":"whole","date_system":"1900"}

{"sheet":"SAŽETAK","index":0,"n_rows":37,"n_cols":10,"rows_kept":37,"merged":[[0,0,0,9],[2,0,2,9],[4,0,4,9],[7,0,7,4],[8,0,8,4],[9,0,9,4],[11,0,11,4],[12,0,12,4],[13,0,13,4],[15,0,15,9],[18,0,18,4],[19,0,19,4],[20,0,20,4],[21,0,21,4],[23,0,23,9],[26,0,26,4],[27,0,27,4],[28,0,28,4],[30,0,30,9],[33,0,33,4],[34,0,34,4],[35,0,35,4],[36,0,36,4],[38,0,38,9]]}
["FINANCIJSKI PLAN JAVNE VATROGASNE POSTROJBE GRADA ŽUPANJA - PRORAČUNSKOG KORISNIKA GRADA ŽUPANJE \nZA 2025. I PROJEKCIJA ZA 2026. I 2027. GODINU"]
[]
["I. OPĆI DIO"]
[]
["A) SAŽETAK RAČUNA PRIHODA I RASHODA"]
[{"$nulls":9},"EUR"]
[{"$nulls":5},"Izvršenje 2023.","Plan 2024.","Proračun za 2025.","Projekcija proračuna\nza 2026.","Projekcija proračuna\nza 2027."]
["PRIHODI UKUPNO",{"$nulls":4},{"$f":"F9+F10","v":{"v":0,"d":"0.00"}},{"$f":"G9+G10","v":{"v":0,"d":"0.00"}},{"v":0,"d":"0.00"},{"v":0,"d":"0.00"},{"v":0,"d":"0.00"}]
["6 PRIHODI POSLOVANJA"]
["7 PRIHODI OD PRODAJE NEFINANCIJSKE IMOVINE"]
["RASHODI UKUPNO",{"$nulls":4},{"$f":"F12+F13","v":{"v":0,"d":"0.00"}},{"$f":"G12+G13","v":{"v":0,"d":"0.00"}},{"v":0,"d":"0.00"},{"v":0,"d":"0.00"},{"v":0,"d":"0.00"}]
["3 RASHODI  POSLOVANJA"]
["4 RASHODI ZA NABAVU NEFINANCIJSKE IMOVINE"]
["RAZLIKA - VIŠAK / MANJAK",{"$nulls":4},{"$f":"F8-F11","v":{"v":0,"d":"0.00"}},{"$f":"G8-G11","v":{"v":0,"d":"0.00"}},{"v":0,"d":"0.00"},{"v":0,"d":"0.00"},{"v":0,"d":"0.00"}]
[]
["B) SAŽETAK RAČUNA FINANCIRANJA"]
[]
[{"$nulls":5},"Izvršenje 2023.","Plan 2024.","Proračun za 2025.","Projekcija proračuna\nza 2026.","Projekcija proračuna\nza 2027."]
["8 PRIMICI OD FINANCIJSKE IMOVINE I ZADUŽIVANJA"]
["5 IZDACI ZA FINANCIJSKU IMOVINU I OTPLATE ZAJMOVA"]
["NETO FINANCIRANJE",{"$nulls":4},{"$f":"F19-F20","v":{"v":0,"d":"0.00"}},{"$f":"G19-G20","v":{"v":0,"d":"0.00"}},{"v":0,"d":"0.00"},{"v":0,"d":"0.00"},{"v":0,"d":"0.00"}]
["VIŠAK / MANJAK + NETO FINANCIRANJE",{"$nulls":4},{"$f":"F14+F21","v":{"v":0,"d":"0.00"}},{"$f":"G14+G21","v":{"v":0,"d":"0.00"}},{"v":0,"d":"0.00"},{"v":0,"d":"0.00"},{"v":0,"d":"0.00"}]
[]
["C) PRENESENI VIŠAK ILI PRENESENI MANJAK "]
[]
[{"$nulls":5},"Izvršenje 2023.","Plan 2024.","Proračun za 2025.","Projekcija proračuna\nza 2026.","Projekcija proračuna\nza 2027."]
["PRIJENOS VIŠKA / MANJKA IZ PRETHODNE(IH) GODINE",{"$nulls":4},{"v":0,"d":"0.00"},{"v":0,"d":"0.00"},{"v":0,"d":"0.00"},{"v":0,"d":"0.00"},{"v":0,"d":"0.00"}]
["PRIJENOS VIŠKA / MANJKA U SLJEDEĆE RAZDOBLJE",{"$nulls":4},{"$f":"F22+F27","v":{"v":0,"d":"0.00"}},{"$f":"G22+G27","v":{"v":0,"d":"0.00"}},{"v":0,"d":"0.00"},{"v":0,"d":"0.00"},{"v":0,"d":"0.00"}]
["VIŠAK / MANJAK + NETO FINANCIRANJE + PRIJENOS VIŠKA / MANJKA IZ PRETHODNE(IH) GODINE - PRIJENOS VIŠKA / MANJKA U SLJEDEĆE RAZDOBLJE",{"$nulls":4},{"$f":"F14+F21+F27-F28","v":{"v":0,"d":"0.00"}},{"$f":"G14+G21+G27-G28","v":{"v":0,"d":"0.00"}},{"v":0,"d":"0.00"},{"v":0,"d":"0.00"},{"v":0,"d":"0.00"}]
[]
["D) VIŠEGODIŠNJI PLAN URAVNOTEŽENJA"]
[]
[{"$nulls":5},"Izvršenje 2023.","Plan 2024.","Proračun za 2025.","Projekcija proračuna\nza 2026.","Projekcija proračuna\nza 2027."]
["PRIJENOS VIŠKA / MANJKA IZ PRETHODNE(IH) GODINE",{"$nulls":4},{"v":0,"d":"0.00"},{"$f":"F37","v":{"v":0,"d":"0.00"}},{"$f":"G37","v":{"v":0,"d":"0.00"}},{"$f":"H37","v":{"v":0,"d":"0.00"}},{"$f":"I37","v":{"v":0,"d":"0.00"}}]
["VIŠAK / MANJAK IZ PRETHODNE(IH) GODINE KOJI ĆE SE RASPOREDITI / POKRITI",{"$nulls":4},{"v":0,"d":"0.00"},{"v":0,"d":"0.00"},{"v":0,"d":"0.00"},{"v":0,"d":"0.00"},{"v":0,"d":"0.00"}]
["VIŠAK / MANJAK TEKUĆE GODINE",{"$nulls":4},{"v":0,"d":"0.00"},{"v":0,"d":"0.00"},{"v":0,"d":"0.00"},{"v":0,"d":"0.00"},{"v":0,"d":"0.00"}]
["PRIJENOS VIŠKA / MANJKA U SLJEDEĆE RAZDOBLJE",{"$nulls":4},{"$f":"F34-F35+F36","v":{"v":0,"d":"0.00"}},{"$f":"G34-G35+G36","v":{"v":0,"d":"0.00"}},{"v":0,"d":"0.00"},{"v":0,"d":"0.00"},{"v":0,"d":"0.00"}]

{"sheet":" Račun prihoda i rashoda","index":1,"n_rows":28,"n_cols":8,"rows_kept":28,"merged":[[0,0,0,7],[2,0,2,7],[4,0,4,7],[6,0,6,7],[18,0,18,7]]}
["FINANCIJSKI PLAN JAVNE VATROGASNE POSTROJBE GRADA ŽUPANJA - PRORAČUNSKOG KORISNIKA GRADA ŽUPANJE \nZA 2025. I PROJEKCIJA ZA 2026. I 2027. GODINU"]
[]
["I. OPĆI DIO"]
[]
["A. RAČUN PRIHODA I RASHODA "]
[]
["PRIHODI POSLOVANJA PREMA EKONOMSKOJ KLASIFIKACIJI"]
[]
["Razred","Skupina","Naziv prihoda","Izvršenje 2023.","Plan 2024.","Plan za 2025.","Projekcija \nza 2026.","Projekcija \nza 2027."]
[null,null,"PRIHODI UKUPNO"]
[6,null,"Prihodi poslovanja"]
[null,63,"Pomoći iz inozemstva i od subjekata unutar općeg proračuna"]
[null,"…"]
[null,67,"Prihodi iz nadležnog proračuna i od HZZO-a temeljem ugovornih obveza"]
[7,null,"Prihodi od prodaje nefinancijske imovine"]
[null,72,"Prihodi od prodaje proizvedene dugotrajne imovine"]
[]
[]
["RASHODI POSLOVANJA PREMA EKONOMSKOJ KLASIFIKACIJI"]
[]
["Razred","Skupina","Naziv rashoda","Izvršenje 2023.","Plan 2024.","Plan za 2025.","Projekcija \nza 2026.","Projekcija \nza 2027."]
[null,null,"RASHODI UKUPNO"]
[3,null,"Rashodi poslovanja"]
[null,31,"Rashodi za zaposlene"]
[null,32,"Materijalni rashodi"]
[null,"…"]
[4,null,"Rashodi za nabavu nefinancijske imovine"]
[null,41,"Rashodi za nabavu neproizvedene dugotrajne imovine"]

{"sheet":"Prihodi i rashodi po izvorima","index":2,"n_rows":28,"n_cols":6,"rows_kept":28,"merged":[[0,0,0,5],[2,0,2,5],[4,0,4,5],[6,0,6,5],[19,0,19,5]]}
["FINANCIJSKI PLAN JAVNE VATROGASNE POSTROJBE GRADA ŽUPANJA - PRORAČUNSKOG KORISNIKA GRADA ŽUPANJE \nZA 2025. I PROJEKCIJA ZA 2026. I 2027. GODINU"]
[]
["I. OPĆI DIO"]
[]
["A. RAČUN PRIHODA I RASHODA "]
[]
["PRIHODI POSLOVANJA PREMA IZVORIMA FINANCIRANJA"]
[]
["Brojčana oznaka i naziv","Izvršenje 2023.","Plan 2024.","Plan za 2025.","Projekcija \nza 2026.","Projekcija \nza 2027."]
["PRIHODI UKUPNO"]
["1 Opći prihodi i primici"]
["  11 Opći prihodi i primici"]
["…"]
["4 Prihodi za posebne namjene"]
["  43 Ostali prihodi za posebne namjene"]
["5 Pomoći"]
["  52 Ostale pomoći"]
[]
[]
["RASHODI POSLOVANJA PREMA IZVORIMA FINANCIRANJA"]
[]
["Brojčana oznaka i naziv","Izvršenje 2023.","Plan 2024.","Plan za 2025.","Projekcija \nza 2026.","Projekcija \nza 2027."]
["RASHODI UKUPNO"]
["1 Opći prihodi i primici"]
["  11 Opći prihodi i primici"]
["…"]
["3 Vlastiti prihodi"]
["  31 Vlastiti prihodi"]

{"sheet":"Rashodi prema funkcijskoj kl","index":3,"n_rows":15,"n_cols":6,"rows_kept":15,"merged":[[0,0,0,5],[2,0,2,5],[4,0,4,5],[6,0,6,5]]}
["FINANCIJSKI PLAN JAVNE VATROGASNE POSTROJBE GRADA ŽUPANJA - PRORAČUNSKOG KORISNIKA GRADA ŽUPANJE \nZA 2025. I PROJEKCIJA ZA 2026. I 2027. GODINU"]
[]
["I. OPĆI DIO"]
[]
["A. RAČUN PRIHODA I RASHODA "]
[]
["RASHODI PREMA FUNKCIJSKOJ KLASIFIKACIJI"]
[]
["Brojčana oznaka i naziv","Izvršenje 2023.","Plan 2024.","Plan za 2025.","Projekcija \nza 2026.","Projekcija \nza 2027."]
["UKUPNI RASHODI"]
["01 Opće javne usluge"]
["011 Izvršna i zakonodavna tijela, financijski i fiskalni poslovi"]
["013 Opće usluge"]
["04 Ekonomski poslovi"]
["041 Opći ekonomski, trgovački i poslovi vezani uz rad"]

{"sheet":"Račun financiranja","index":4,"n_rows":14,"n_cols":8,"rows_kept":14,"merged":[[0,0,0,7],[2,0,2,7],[4,0,4,7]]}
["FINANCIJSKI PLAN JAVNE VATROGASNE POSTROJBE GRADA ŽUPANJA - PRORAČUNSKOG KORISNIKA GRADA ŽUPANJE \nZA 2025. I PROJEKCIJA ZA 2026. I 2027. GODINU"]
[]
["I. OPĆI DIO"]
[]
["B. RAČUN FINANCIRANJA PREMA EKONOMSKOJ KLASIFIKACIJI"]
[]
["Razred","Skupina","Naziv","Izvršenje 2023.","Plan 2024.","Plan za 2025.","Projekcija \nza 2026.","Projekcija \nza 2027."]
[null,null,"PRIMICI UKUPNO"]
[8,null,"Primici od financijske imovine i zaduživanja"]
[null,84,"Primici od zaduživanja"]
[]
[null,null,"IZDACI UKUPNO"]
[5,null,"Izdaci za financijsku imovinu i otplate zajmova"]
[null,54,"Izdaci za otplatu glavnice primljenih kredita i zajmova"]

{"sheet":"Račun financiranja po izvorima","index":5,"n_rows":16,"n_cols":6,"rows_kept":16,"merged":[[0,0,0,5],[2,0,2,5],[4,0,4,5]]}
["FINANCIJSKI PLAN JAVNE VATROGASNE POSTROJBE GRADA ŽUPANJA - PRORAČUNSKOG KORISNIKA GRADA ŽUPANJE \nZA 2025. I PROJEKCIJA ZA 2026. I 2027. GODINU"]
[]
["I. OPĆI DIO"]
[]
["B. RAČUN FINANCIRANJA PREMA IZVORIMA FINANCIRANJA"]
[]
["Brojčana oznaka i naziv","Izvršenje 2023.","Plan 2024.","Plan za 2025.","Projekcija \nza 2026.","Projekcija \nza 2027."]
["PRIMICI UKUPNO"]
["8 Namjenski primici od zaduživanja"]
["  81 Namjenski primici od zaduživanja"]
[]
["IZDACI UKUPNO"]
["1 Opći prihodi i primici"]
["  11 Opći prihodi i primici"]
["3 Vlastiti prihodi"]
["  31 Vlastiti prihodi"]

{"sheet":"POSEBNI DIO","index":6,"n_rows":22,"n_cols":9,"rows_kept":22,"merged":[[0,0,0,8],[2,0,2,8],[4,0,4,2],[5,0,5,2],[6,0,6,2],[7,0,7,2],[8,0,8,2],[9,0,9,2],[10,0,10,2],[11,0,11,2],[12,0,12,2],[13,0,13,2],[14,0,14,2],[15,0,15,2],[16,0,16,2],[17,0,17,2],[18,0,18,2],[19,0,19,2],[20,0,20,2],[21,0,21,2]]}
["FINANCIJSKI PLAN JAVNE VATROGASNE POSTROJBE GRADA ŽUPANJA - PRORAČUNSKOG KORISNIKA GRADA ŽUPANJE \nZA 2025. I PROJEKCIJA ZA 2026. I 2027. GODINU"]
[]
["II. POSEBNI DIO"]
[]
["Šifra",null,null,"Naziv ","Izvršenje 2023.","Plan 2024.","Plan za 2025.","Projekcija \nza 2026.","Projekcija \nza 2027."]
["GLAVA/RKP 51669",null,null,"JAVNA VATROGASNA POSTROJBA GRADA ŽUPANJA"]
["Izvor financiranja xx",null,null,"Naziv izvora financiranja"]
["Izvor financiranja yy",null,null,"Naziv izvora financiranja"]
["PROGRAM xxxx",null,null,"NAZIV PROGRAMA"]
["Aktivnost Axxxxxx",null,null,"NAZIV AKTIVNOSTI"]
["Izvor financiranja xx",null,null,"Naziv izvora financiranja"]
[3,null,null,"Rashodi poslovanja"]
[31,null,null,"Rashodi za zaposlene"]
[32,null,null,"Materijalni rashodi"]
["PROGRAM xxxx",null,null,"NAZIV PROGRAMA"]
["Kapitalni projekt Kxxxxxx",null,null,"NAZIV KAPITALNOG PROJEKTA"]
["Izvor financiranja xx",null,null,"Naziv izvora financiranja"]
[3,null,null,"Rashodi poslovanja"]
[32,null,null,"Materijalni rashodi"]
["Izvor financiranja xx",null,null,"Naziv izvora financiranja"]
[4,null,null,"Rashodi za nabavu nefinancijske imovine"]
[42,null,null,"Rashodi za nabavu proizvedene dugotrajne imovine"]